{"text_format":"1","workbook":"xlsx","n_sheets":11,"sheets":["Proposal Cover Page","IDF","Project Proposal Overview","A. SOW","B. WP","C. Budget","D. Budget Narrative","E. Payments Schedule","F. NIH Standard TCs","Grant Agreement","Tecnical"],"not_rendered":{"charts":0,"images":5,"macros":1,"external_links":0,"defined_names":10,"comments":0,"pivot_tables":0},"unopened":[],"bounds":{"document_bytes":16777216,"sheet_cells":100000,"rows_first":2000,"rows_last":500,"rows_between":2000,"halvings":0,"cell_chars":16384,"cell_head_chars":4096},"cells_cut":0,"cells_raw":0,"read":"whole","date_system":"1900"}

{"sheet":"Proposal Cover Page","index":0,"n_rows":47,"n_cols":18,"rows_kept":47,"cut":false,"hidden":false,"merged":[[2,0,30,8],[0,0,0,8]]}
["PROPOSAL COVER LETTER"]
[]
["\n\nProposal Cover Letter\n\nRe: [Insert Project title]\n\nI, [Institution's Authorized Signatory Name], hereby acknowledge that I have submitted a proposal to RFP DE-02-2023 'Cybersecurity Improvement Grants for Governmental Institutions in Ukraine' on behalf of [insert Institution's full name].  \n\nIf awarded a grant, I confirm that [insert name of the Principal Investigator] will be representing [insert Institution's full name] during implementation of the Project titled [Insert Project title].\n\nI attest that the information contained in submitted proposal package which consists of\n(1) Institutional Data Form,\n(2) Project Proposal Overview,\n(3) Scope of Work,\n(4) Workplan,\n(5) Budget,\n(6) Budget Narrative,\n(7) Payment Schedule, \n\nis truthful and that it has been prepared with the full knowledge and consent of [insert Institution's full name].  \n\nI affirm that I have read and understand CRDF Global’s policies and standards outlined within the RFP DE-02-2023 'Cybersecurity Improvement Grants for Governmental Institutions in Ukraine,' including CRDF Global’s General Terms and Conditions.  \n\n\nAuthorized Signatory: [Insert Authorized Signatory's Name and Title]\n\n[Signature]\n\n[Date]\n\nPrincipal Investigator: [Insert Principal Investigator's Name and Title]\n\n[Signature]\n\n[Date]"]
[]
[]
[]
[]
[null,null,null,null,null,null,null,null,null,null,null,null,null,null,null,null,null,{"$f":"B8","v":0}]
[]
[]
[null,null,null,null,null,null,null,null,null,null,null,null,null,null,null,null,null,{"$f":"D11","v":0}]
[null,null,null,null,null,null,null,null,null,null,null,null,null,null,null,null,null,{"$f":"D12","v":0}]
[null,null,null,null,null,null,null,null,null,null,null,null,null,null,null,null,null,{"$f":"D13","v":0}]
[null,null,null,null,null,null,null,null,null,null,null,null,null,null,null,null,null,{"$f":"D14","v":0}]
[null,null,null,null,null,null,null,null,null,null,null,null,null,null,null,null,null,0]
[null,null,null,null,null,null,null,null,null,null,null,null,null,null,null,null,null,0]
[]
[]
[null,null,null,null,null,null,null,null,null,null,null,null,null,null,null,null,null,{"$f":"B19","v":0}]
[]
[]
[null,null,null,null,null,null,null,null,null,null,null,null,null,null,null,null,null,{"$f":"B22","v":0}]
[]
[]
[]
[null,null,null,null,null,null,null,null,null,null,null,null,null,null,null,null,null,{"$f":"B26","v":0}]
[]
[]
[]
[]
[]
[]
[]
[null,null,null,null,null,null,null,null,null,null,null,null,null,null,null,null,null,{"$f":"E34","v":0}]
[null,null,null,null,null,null,null,null,null,null,null,null,null,null,null,null,null,{"$f":"E35","v":0}]
[]
[]
[null,null,null,null,null,null,null,null,null,null,null,null,null,null,null,null,null,0]
[null,null,null,null,null,null,null,null,null,null,null,null,null,null,null,null,null,0]
[null,null,null,null,null,null,null,null,null,null,null,null,null,null,null,null,null,0]
[null,null,null,null,null,null,null,null,null,null,null,null,null,null,null,null,null,0]
[null,null,null,null,null,null,null,null,null,null,null,null,null,null,null,null,null,{"$f":"D41","v":0}]
[]
[null,null,null,null,null,null,null,null,null,null,null,null,null,null,null,null,null,0]
[null,null,null,null,null,null,null,null,null,null,null,null,null,null,null,null,null,0]
[null,null,null,null,null,null,null,null,null,null,null,null,null,null,null,null,null,0]
[null,null,null,null,null,null,null,null,null,null,null,null,null,null,null,null,null,0]

{"sheet":"IDF","index":1,"n_rows":92,"n_cols":18,"rows_kept":92,"cut":false,"hidden":false,"merged":[[12,1,12,2],[13,1,13,2],[43,1,43,2],[43,3,43,7],[24,1,24,7],[39,3,39,7],[40,1,40,2],[40,3,40,7],[34,4,34,7],[42,1,42,7],[33,4,33,7],[34,1,34,3],[37,3,37,7],[30,6,30,7],[30,1,30,3],[30,4,30,5],[27,1,27,7],[49,1,49,7],[46,1,46,2],[46,3,46,7],[32,1,32,7],[33,1,33,3],[36,1,36,7],[28,1,28,7],[37,1,37,2],[45,1,45,2],[45,3,45,7],[38,1,38,2],[38,3,38,7],[39,1,39,2],[44,1,44,2],[51,1,51,5],[51,6,51,7],[52,1,52,5],[52,6,52,7],[44,3,44,7],[0,0,0,8],[29,1,29,5],[29,6,29,7],[18,1,18,7],[21,1,21,7],[25,1,25,7],[14,3,14,7],[11,3,11,7],[12,3,12,7],[15,3,15,7],[17,1,17,7],[20,1,20,7],[6,1,6,7],[9,1,9,7],[7,1,7,7],[13,3,13,7],[10,3,10,7],[62,1,62,5],[62,6,62,7],[63,1,63,5],[63,6,63,7],[56,1,56,5],[56,6,56,7],[57,1,57,5],[57,6,57,7],[58,1,58,5],[58,6,58,7],[54,1,54,5],[54,6,54,7],[55,1,55,5],[55,6,55,7],[59,6,59,7],[64,1,64,5],[64,6,64,7],[59,1,59,5],[78,1,78,5],[78,6,78,7],[66,1,66,5],[66,6,66,7],[68,1,68,5],[68,6,68,7],[70,1,70,5],[70,6,70,7],[60,1,60,5],[60,6,60,7],[80,1,80,5],[80,6,80,7],[72,1,72,5],[72,6,72,7],[74,1,74,5],[74,6,74,7],[76,1,76,5],[76,6,76,7],[89,1,89,5],[89,6,89,7],[91,1,91,5],[91,6,91,7],[83,1,83,5],[83,6,83,7],[85,1,85,5],[85,6,85,7],[87,1,87,5],[87,6,87,7]]}
["INSTITUTIONAL DATA FORM (IDF)"]
[]
[]
[]
[]
[]
[null,"1. Grantee Name"]
[null,null,null,null,null,null,null,null,null,null,null,null,null,null,null,null,null,{"$f":"B8","v":0}]
[]
[null,"2. Grantee Address"]
[null,"Address Line 1",null,null,null,null,null,null,null,null,null,null,null,null,null,null,null,{"$f":"D11","v":0}]
[null,"Address Line 2",null,null,null,null,null,null,null,null,null,null,null,null,null,null,null,{"$f":"D12","v":0}]
[null,"City",null,null,null,null,null,null,null,null,null,null,null,null,null,null,null,{"$f":"D13","v":0}]
[null,"State",null,null,null,null,null,null,null,null,null,null,null,null,null,null,null,{"$f":"D14","v":0}]
[null,"Postal Code",null,null,null,null,null,null,null,null,null,null,null,null,null,null,null,0]
[null,"Grantee Country",null,null,null,null,null,null,null,null,null,null,null,null,null,null,null,0]
[]
[null,"3. Grantee Phone"]
[null,null,null,null,null,null,null,null,null,null,null,null,null,null,null,null,null,{"$f":"B19","v":0}]
[]
[null,"4. Grantee E-mail"]
[null,null,null,null,null,null,null,null,null,null,null,null,null,null,null,null,null,{"$f":"B22","v":0}]
[]
[]
[null,"5. Grantee Website"]
[null,null,null,null,null,null,null,null,null,null,null,null,null,null,null,null,null,{"$f":"B26","v":0}]
[]
[null,"6. Institution Type"]
[null,"Select an option"]
[null,"Is your organization registered as a charitable/non-profit entity?",null,null,null,null,"Select an option"]
[null,"Is your organization a single-audited grantee?"]
[]
[null,"7. Grantee's Unique Entity ID (UEID)"]
[null,"UEID",null,null,null,null,null,null,null,null,null,null,null,null,null,null,null,{"$f":"E34","v":0}]
[null,"Local registration number",null,null,null,null,null,null,null,null,null,null,null,null,null,null,null,{"$f":"E35","v":0}]
[]
[null,"8. Principal Investigator"]
[null,"Name",null,null,null,null,null,null,null,null,null,null,null,null,null,null,null,0]
[null,"Postion",null,null,null,null,null,null,null,null,null,null,null,null,null,null,null,0]
[null,"Phone Number",null,null,null,null,null,null,null,null,null,null,null,null,null,null,null,0]
[null,"E-mail",null,null,null,null,null,null,null,null,null,null,null,null,null,null,null,0]
[null,null,null,null,null,null,null,null,null,null,null,null,null,null,null,null,null,{"$f":"D41","v":0}]
[null,"9. Authorized Institutional Representative holding signatory Authority "]
[null,"Name",null,null,null,null,null,null,null,null,null,null,null,null,null,null,null,0]
[null,"Postion",null,null,null,null,null,null,null,null,null,null,null,null,null,null,null,0]
[null,"Phone Number",null,null,null,null,null,null,null,null,null,null,null,null,null,null,null,0]
[null,"E-mail",null,null,null,null,null,null,null,null,null,null,null,null,null,null,null,0]
[]
[]
[null,"10.  Future Grantee Questionnaire"]
[]
[1,"Did your organization expend more than US $750,000.00 in U.S. Government Federal awards (Grants, Cooperative Agreements, Assistance Awards) in the previous fiscal year?",null,null,null,null,"Yes"]
[]
[]
[2,"Over the past three years, has your institution previously received or currently receives U.S. Federal financial assistance funds? ",null,null,null,null,"Select an option"]
[]
[3,"Over the past three years, has your institution previously received or currently receives funds from any other international funders?",null,null,null,null,"Select an option"]
[]
[4,"Over the past three years, has your institution previously received or currently receives a grant from CRDF Global? ",null,null,null,null,"Select an option"]
[]
[5,"Has your organization implemented projects/grants similar to the scope of work proposed in this application?",null,null,null,null,"Select an option"]
[]
[6,"Were all project goals and objectives met and all activities fully implemented in previously implemented grants?",null,null,null,null,"Select an option"]
[]
[7,"Has your organization ever had a grant or contract terminated for cause?",null,null,null,null,"Select an option"]
[]
[8,"Does the proposed grant funds comprise more than 10% of grantee’s operational funds?",null,null,null,null,"Select an option"]
[]
[9,"What was the maximum budget of a single-grant previously managed by your organization over the last three years?",null,null,null,null,0]
[]
[10,"Is there a dedicated department or position responsible for entering grant financial data into the accounting system?",null,null,null,null,"Select an option"]
[]
[11,"Does your organization utilize a timekeeping system to track time spent against individual grants?",null,null,null,null,"Select an option"]
[]
[12,"Is there a dedicated department or position responsible for contractual management of the grant agreement?",null,null,null,null,"Select an option"]
[]
[13,"Does you organization have employees to comprise project team and implement the grant agreement? (no – if these employees need to be hired for this project specifically)",null,null,null,null,"Select an option"]
[]
[14,"Does your organization’s authorized signatory have relevant power of attorney or any equivalent document or authority proving such signing authority? ",null,null,null,null,"Select an option"]
[]
[15,"Does your organization have an ethics policy?",null,null,null,null,"Select an option"]
[]
[]
[16,"Does the institute have an accounting or financial manual to outline the procedures for authorizing expenses?",null,null,null,null,"Yes"]
[]
[17,"Does the institute utilize an accounting system to separately track donor funds and expenses?",null,null,null,null,"Select an option"]
[]
[18,"Does you organization have any experience receiving grant funding to organization’s bank account from oversees? ",null,null,null,null,"Select an option"]
[]
[19,"Can your organization provide excerpts from general ledger to prove expenses incurred under a grant agreement?",null,null,null,null,"Select an option"]
[]
[20,"Has your organization been audited in the past 3 years?",null,null,null,null,"Select an option"]

{"sheet":"Project Proposal Overview","index":2,"n_rows":40,"n_cols":1,"rows_kept":40,"cut":false,"hidden":false,"merged":[[5,0,5,8],[7,0,7,8],[4,0,4,8],[0,3,0,5],[1,0,1,8],[13,0,13,8],[36,0,36,8],[22,0,22,8],[27,0,27,8],[31,0,31,8],[26,0,26,8],[29,0,29,8],[32,0,32,8],[34,0,34,8],[10,0,10,8],[11,0,11,8],[37,0,37,8],[39,0,39,8],[16,0,16,8],[17,0,17,8],[19,0,19,8],[21,0,21,8],[24,0,24,8]]}
[]
["Project Proposal Overview"]
[]
[]
["Problem Statement"]
["Please add a short narrative description of the problem you encounter and how it affects you.\nMake sure to include information about susceptibility to potential cyber threats and/or cyber incidents. Also, name potential gaps in cybersecurity perimeter that the grantee intends to cover for the period of up to nine (9) months."]
[]
["[enter here]"]
[]
[]
["Tentative Scope of Work of the project"]
["Please provide an outline for the scope of work which needs to be performed by Expert #1. This section should include items and tasks that will require expert's engagement and work. Note that the final SOW will be elaborated together with the expert.  Please, indicate separately requirments for each Expert. "]
[]
["[enter here]"]
[]
[]
["Sustainability of the Project"]
["How can the proposed activities contribute to enhancing the cybersecurity systems of grantees?"]
[]
["[enter here]"]
[]
["[specify section's name here]"]
["[Provide specific instructions for Grantees]"]
[]
["[enter here]"]
[]
["[specify section's name here]"]
["[Provide specific instructions for Grantees]"]
[]
["[enter here]"]
[]
["[specify section's name here]"]
["[Provide specific instructions for Grantees]"]
[]
["[enter here]"]
[]
["[specify section's name here]"]
["[Provide specific instructions for Grantees]"]
[]
["[enter here]"]

{"sheet":"A. SOW","index":3,"n_rows":127,"n_cols":19,"rows_kept":127,"cut":false,"hidden":false,"merged":[[0,3,0,5],[1,0,1,8],[3,0,3,1],[4,0,4,1],[5,0,5,1],[7,0,7,1],[3,9,3,17],[3,2,3,8],[25,0,25,8],[27,0,27,1],[27,2,27,8],[14,0,14,8],[11,0,11,8],[12,0,12,8],[16,0,16,8],[18,0,18,1],[18,2,18,8],[20,0,22,1],[20,2,20,8],[21,2,21,8],[22,2,22,8],[29,0,29,8],[33,0,33,8],[36,0,36,1],[36,2,36,8],[38,0,38,8],[42,0,42,8],[45,0,45,1],[45,2,45,8],[47,0,47,8],[51,0,51,8],[54,0,54,1],[54,2,54,8],[56,0,56,8],[60,0,60,8],[63,0,63,1],[63,2,63,8],[65,0,65,8],[69,0,69,8],[72,0,72,1],[72,2,72,8],[74,0,74,8],[78,0,78,8],[81,0,81,1],[81,2,81,8],[83,0,83,8],[87,0,87,8],[93,2,93,8],[95,0,95,8],[99,0,99,8],[102,0,102,1],[102,2,102,8],[9,0,9,1],[9,2,9,8],[126,0,126,8],[5,2,5,8],[4,2,4,8],[117,0,117,8],[118,0,118,8],[120,0,120,8],[122,0,122,8],[124,0,124,8],[104,0,104,8],[108,0,108,8],[111,0,111,1],[111,2,111,8],[113,0,113,8],[93,0,93,1]]}
[null,null,null,"ATTACHMENT A"]
["SCOPE OF WORK (SOW)"]
[]
["Project title",null,"[enter here]",null,null,null,null,null,null,null,null,null,null,null,null,null,null,null,{"$f":"C4","v":"[enter here]"}]
["Grantee",null,"[enter here]"]
["Project duration",null,"[enter here]",null,null,null,null,null,null,null,null,null,null,null,null,null,null,null,{"$f":"C6","v":"[enter here]"}]
[]
["Principal Investigator",null,"[enter here]"]
[]
["Bioethics",null,"         Human Subjects           Animal Subjects           Recombinant DNA"]
[]
["1. Project Description"]
["Please add a short narrative description of the project that summarizes why the work is being done, what the project aims to accomplish, and any general information about planned activities and anticipated results. "]
[]
["[enter here]"]
[]
["2. Project Goal and Objectives"]
[]
["Project Goal:",null,"[enter here]"]
[]
["Project\n Objectives:",null,"1) [enter here]"]
[null,null,"2) [enter here]"]
[null,null,"3) [enter here]"]
[]
[]
["3. Project Activities and Deliverables"]
[]
["Milestone 1",null,"[enter here]",null,null,null,null,null,null,null,null,null,null,null,null,null,null,null,{"$f":"C28","v":"[enter here]"}]
[]
["[enter here]"]
[]
["Outputs (Results):"]
[]
["1) [enter here]\n2) [enter here]\n3) [enter here]"]
[]
[]
["Milestone 2",null,"[enter here]",null,null,null,null,null,null,null,null,null,null,null,null,null,null,null,{"$f":"C37","v":"[enter here]"}]
[]
["[enter here]"]
[]
["Outputs (Results):"]
[]
["1) [enter here]\n2) [enter here]\n3) [enter here]"]
[]
[]
["Milestone 3",null,"[enter here]",null,null,null,null,null,null,null,null,null,null,null,null,null,null,null,{"$f":"C46","v":"[enter here]"}]
[]
["[enter here]"]
[]
["Outputs (Results):"]
[]
["1) [enter here]\n2) [enter here]\n3) [enter here]"]
[]
[]
["Milestone 4",null,"[enter here]",null,null,null,null,null,null,null,null,null,null,null,null,null,null,null,{"$f":"C55","v":"[enter here]"}]
[]
["[enter here]"]
[]
["Outputs (Results):"]
[]
["1) [enter here]\n2) [enter here]\n3) [enter here]"]
[]
[]
["Milestone 5",null,"[enter here]",null,null,null,null,null,null,null,null,null,null,null,null,null,null,null,{"$f":"C64","v":"[enter here]"}]
[]
["[enter here]"]
[]
["Outputs (Results):"]
[]
["1) [enter here]\n2) [enter here]\n3) [enter here]"]
[]
[]
["Milestone 6",null,"[enter here]",null,null,null,null,null,null,null,null,null,null,null,null,null,null,null,{"$f":"C73","v":"[enter here]"}]
[]
["[enter here]"]
[]
["Outputs (Results):"]
[]
["[enter here]"]
[]
[]
["Milestone 7",null,"[enter here]",null,null,null,null,null,null,null,null,null,null,null,null,null,null,null,{"$f":"C82","v":"[enter here]"}]
[]
["[enter here]"]
[]
["Outputs (Results):"]
[]
["[enter here]"]
[]
[]
[]
[]
[]
["Milestone 8",null,"[enter here]",null,null,null,null,null,null,null,null,null,null,null,null,null,null,null,{"$f":"C94","v":"[enter here]"}]
[]
["[enter here]"]
[]
["Outputs (Results):"]
[]
["[enter here]"]
[]
[]
["Milestone 9",null,"[enter here]",null,null,null,null,null,null,null,null,null,null,null,null,null,null,null,{"$f":"C103","v":"[enter here]"}]
[]
["[enter here]"]
[]
["Outputs (Results):"]
[]
["[enter here]"]
[]
[]
["Milestone 10",null,"[enter here]",null,null,null,null,null,null,null,null,null,null,null,null,null,null,null,{"$f":"C112","v":"[enter here]"}]
[]
["[enter here]"]
[]
["Outputs (Results):"]
[]
["[enter here]"]
["4. Other Relevant Information "]
[]
["1) [please add any information relevant to the project]"]
[]
["2) [please add any information relevant to the project]"]
[]
["3) [please add any information relevant to the project]"]
[]
["4) [please add any information relevant to the project]"]

{"sheet":"B. WP","index":4,"n_rows":16,"n_cols":30,"rows_kept":16,"cut":false,"hidden":false,"merged":[[13,1,13,5],[14,1,14,5],[15,1,15,5],[1,0,1,29],[0,5,0,19],[6,1,6,5],[7,1,7,5],[8,1,8,5],[9,1,9,5],[10,1,10,5],[11,1,11,5],[12,1,12,5],[3,5,3,9],[3,0,3,4]]}
[null,null,null,null,null,"ATTACHMENT B"]
["WORKPLAN (WP)"]
[]
["Project Duration",null,null,null,null,{"$f":"'A. SOW'!S6","v":"[enter here]"}]
[]
[null,null,null,null,null,null,1,2,3,4,5,6,7,8,9,10,11,12,13,14,15,16,17,18,19,20,21,22,23,24]
["Milestone 1",{"$f":"'A. SOW'!S28","v":"[enter here]"}]
["Milestone 2",{"$f":"'A. SOW'!S37","v":"[enter here]"}]
["Milestone 3",{"$f":"'A. SOW'!S46","v":"[enter here]"}]
["Milestone 4",{"$f":"'A. SOW'!S55","v":"[enter here]"}]
["Milestone 5",{"$f":"'A. SOW'!S64","v":"[enter here]"}]
["Milestone 6",{"$f":"'A. SOW'!S73","v":"[enter here]"}]
["Milestone 7",{"$f":"'A. SOW'!S82","v":"[enter here]"}]
["Milestone 8",{"$f":"'A. SOW'!S94","v":"[enter here]"}]
["Milestone 9",{"$f":"'A. SOW'!S103","v":"[enter here]"}]
["Milestone 10",{"$f":"'A. SOW'!S112","v":"[enter here]"}]

{"sheet":"C. Budget","index":5,"n_rows":119,"n_cols":10,"rows_kept":119,"cut":false,"hidden":false,"merged":[[11,4,11,5],[12,4,12,5],[13,4,13,5],[14,4,14,5],[15,4,15,5],[0,3,0,7],[71,4,71,5],[64,2,64,8],[2,3,2,9],[70,4,70,5],[63,2,63,6],[58,2,58,3],[59,2,59,6],[62,2,62,6],[61,2,61,6],[60,2,60,6],[51,2,51,6],[50,2,50,6],[2,1,2,2],[9,4,9,9],[49,2,49,6],[48,2,48,6],[25,2,25,6],[46,2,46,6],[75,4,75,5],[76,2,76,8],[74,4,74,5],[73,4,73,5],[72,4,72,5],[30,2,30,6],[29,2,29,6],[28,2,28,6],[27,2,27,6],[26,2,26,6],[52,2,52,8],[34,2,34,6],[33,2,33,6],[102,2,102,8],[87,2,87,6],[89,2,89,6],[88,2,88,6],[93,2,93,6],[94,2,94,6],[101,2,101,8],[32,2,32,6],[31,2,31,6],[47,2,47,6],[83,4,83,5],[10,4,10,5],[15,2,15,3],[14,2,14,3],[13,2,13,3],[12,2,12,3],[11,2,11,3],[78,4,78,5],[79,4,79,5],[80,4,80,5],[81,4,81,5],[82,4,82,5],[45,2,45,6],[44,2,44,6],[43,2,43,6],[42,2,42,6],[119,0,119,10],[114,8,114,9],[116,8,116,9],[118,8,118,9],[105,2,105,8],[111,2,111,10],[113,0,113,10],[107,8,107,9],[108,8,108,9],[110,8,110,9],[106,2,106,8],[104,2,104,8],[103,2,103,8]]}
[null,null,null,"ATTACHMENT C"]
[]
[null,"Project Title",null,{"$f":"'A. SOW'!S4","v":"[enter here]"}]
[]
[]
[null,"A","Project Personnel Labor "]
[]
[]
[null,"A","Labor"]
[null,null,null,null,{"$f":"IF(C10=\"Level of Effort\",\"Please enter Fringe and LOE as numbers, they will be calculated as percentages\",\" \")","v":" "}]
[null,null,"Name",null,"Title",null,"Project Position","# of Hours","Please select","Total"]
[null,1,null,null,null,null,null,0,0,{"$f":"H12*I12","v":0}]
[null,2,null,null,null,null,null,0,0,{"$f":"H13*I13","v":0}]
[null,3,null,null,null,null,null,0,0,0]
[null,4,null,null,null,null,null,0,0,0]
[null,5,null,null,null,null,null,0,0,0]
[null,null,"Subtotal - Labor",null,null,null,null,null,null,{"$f":"SUM(J12:J16)","v":0}]
[]
[]
[null,"B","Equipment, Supplies, Services & Other direct costs"]
[]
[]
[null,"B1","Equipment"]
[]
[null,null,"Item Description",null,null,null,null,"# of units","Unit cost","Total"]
[null,1,null,null,null,null,null,0,0,{"$f":"H26*I26","v":0}]
[null,2,null,null,null,null,null,0,0,0]
[null,3,null,null,null,null,null,0,0,0]
[null,4,null,null,null,null,null,0,0,0]
[null,5,null,null,null,null,null,0,0,0]
[null,6,null,null,null,null,null,0,0,0]
[null,7,null,null,null,null,null,0,0,0]
[null,8,null,null,null,null,null,0,0,0]
[null,9,null,null,null,null,null,0,0,0]
[null,10,null,null,null,null,null,0,0,0]
[null,null,"Subtotal - Equipment",null,null,null,null,null,null,{"$f":"SUM(J26:J35)","v":0}]
[]
[]
[]
[null,"B2","Supplies"]
[]
[null,null,"Item Description",null,null,null,null,"# of units","Unit cost","Total"]
[null,1,null,null,null,null,null,0,0,{"$f":"H43*I43","v":0}]
[null,2,null,null,null,null,null,0,0,0]
[null,3,null,null,null,null,null,0,0,0]
[null,4,null,null,null,null,null,0,0,0]
[null,5,null,null,null,null,null,0,0,0]
[null,6,null,null,null,null,null,0,0,0]
[null,7,null,null,null,null,null,0,0,0]
[null,8,null,null,null,null,null,0,0,0]
[null,9,null,null,null,null,null,0,0,0]
[null,10,null,null,null,null,null,0,0,0]
[null,null,"Subtotal - Supplies",null,null,null,null,null,null,{"$f":"SUM(J43:J52)","v":0}]
[]
[]
[]
[null,"B3","Services & other direct costs"]
[]
[null,null,"Item Description",null,null,null,null,"# of months","Price per month","Total"]
[null,1,null,null,null,null,null,0,0,{"$f":"H60*I60","v":0}]
[null,2,null,null,null,null,null,0,0,{"$f":"H61*I61","v":0}]
[null,3,null,null,null,null,null,0,0,{"$f":"H62*I62","v":0}]
[null,4,null,null,null,null,null,0,0,{"$f":"H63*I63","v":0}]
[null,5,null,null,null,null,null,0,0,{"$f":"H64*I64","v":0}]
[null,null,"Subtotal - Services & other direct costs",null,null,null,null,null,null,{"$f":"SUM(J60:J64)","v":0}]
[]
[]
[null,"C","Travel"]
[]
[null,null,"Travel "]
[null,null,"Mean of Transportation","Origin City, Country","Destination City, Country",null,"Roundtrip Cost","#  of Travelers","# of Trips","Total"]
[null,1,"Train",null,null,null,0,0,0,{"$f":"G72*H72*I72","v":0}]
[null,2,"Flight",null,null,null,0,0,0,{"$f":"G73*H73*I73","v":0}]
[null,3,"Please select",null,null,null,0,0,0,{"$f":"G74*H74*I74","v":0}]
[null,4,"Please select",null,null,null,0,0,0,{"$f":"G75*H75*I75","v":0}]
[null,5,"Please select",null,null,null,0,0,0,{"$f":"G76*H76*I76","v":0}]
[null,null,"Subtotal - Travel",null,null,null,null,null,null,{"$f":"SUM(J72:J76)","v":0}]
[null,null,"Per Diem"]
[null,null,"Destination City, Country","Meals & Incidentals Rate","# of travel days including travel ",null,"Lodging Rate","# of Nights","# of Travelers","Total"]
[null,1,null,0,0,null,0,0,0,{"$f":"((D80*E80)+(G80*H80)-(D80/2))*I80","v":0}]
[null,null,"Destination City, Country","Meals & Incidentals Rate","# of travel days including travel ",null,"Lodging Rate","# of Nights","# of Travelers","Total"]
[null,2,null,0,0,null,0,0,0,{"$f":"((D82*E82)+(G82*H82)-(D82/2))*I82","v":0}]
[null,null,"Destination City, Country","Meals & Incidentals Rate","# of travel days including travel ",null,"Lodging Rate","# of Nights","# of Travelers","Total"]
[null,3,null,0,0,null,0,0,0,{"$f":"((D84*E84)+(G84*H84)-(D84/2))*I84","v":0}]
[null,null,"Subtotal - Perdiem",null,null,null,null,null,null,{"$f":"J80+J82+J84","v":0}]
[null,null,"Others"]
[null,null,"Description",null,null,null,null,"Rate/Fee","# Units","Total"]
[null,1,"Ex: Parking",null,null,null,null,0,0,{"$f":"H88*I88","v":0}]
[null,2,"Ex: Visa",null,null,null,null,0,0,{"$f":"H89*I89","v":0}]
[null,3,null,null,null,null,null,0,0,{"$f":"H90*I90","v":0}]
[null,null,"Subtotal - Miscellaneous",null,null,null,null,null,null,{"$f":"SUM(J88:J90)","v":0}]
[null,null,"Registrations"]
[null,null,"Description",null,null,null,null,"Fee","# Units","Total"]
[null,1,null,null,null,null,null,0,0,{"$f":"H94*I94","v":0}]
[null,2,null,null,null,null,null,0,0,{"$f":"H95*I95","v":0}]
[null,null,"Subtotal - Registrations",null,null,null,null,null,null,{"$f":"SUM(J94:J95)","v":0}]
[]
[]
[null,null,"Budget Summay"]
[]
[null,null,"Direct Costs"]
[null,"A","Labor",null,null,null,null,null,null,{"$f":"J17","v":0}]
[null,"B1","Equipment",null,null,null,null,null,null,{"$f":"J36","v":0}]
[null,"B2&B3","Supplies, Services & Other direct costs",null,null,null,null,null,null,{"$f":"J53+J65","v":0}]
[null,"C","Travel",null,null,null,null,null,null,{"$f":"J96+J91+J85+J77","v":0}]
[]
[]
[null,null,"Total Direct Costs",null,null,null,null,null,{"$f":"SUM(J102:J107)","v":0}]
[null,null,"Modified Total Direct Costs",null,null,null,null,null,{"$f":"I108-J103","v":0}]
[null,null,"Indirect Rate %",null,null,null,null,0,null,{"$f":"H110","v":0}]
[null,null,"Indirect Costs",null,null,null,null,null,{"$f":"I109*J110","v":0}]
[]
[]
[]
[null,"Subtotal - Direct Costs",null,null,null,null,null,null,{"$f":"J102+J103+J104+J105","v":0}]
[]
[null,"Subtotal - Indirect Costs",null,null,null,null,null,null,{"$f":"I111","v":0}]
[]
[null,"Total Award Cost",null,null,null,null,null,null,{"$f":"I115+I117","v":0}]

{"sheet":"D. Budget Narrative","index":6,"n_rows":299,"n_cols":12,"rows_kept":299,"cut":false,"hidden":false,"merged":[[0,4,0,6],[1,1,1,10],[2,3,2,5],[6,3,6,9],[7,4,7,9],[10,3,10,9],[19,4,19,9],[27,4,27,9],[30,3,30,9],[31,4,31,9],[40,3,40,9],[22,3,22,9],[23,4,23,9],[26,3,26,9],[11,4,11,9],[14,3,14,9],[15,4,15,9],[18,3,18,9],[57,4,57,9],[61,3,61,9],[62,4,62,9],[66,3,66,9],[49,4,49,9],[52,3,52,9],[53,4,53,9],[56,3,56,9],[41,4,41,9],[44,3,44,9],[45,4,45,9],[48,3,48,9],[87,4,87,9],[90,3,90,9],[91,4,91,9],[95,3,95,9],[79,4,79,9],[82,3,82,9],[83,4,83,9],[86,3,86,9],[67,4,67,9],[74,3,74,9],[75,4,75,9],[78,3,78,9],[110,4,110,9],[113,3,113,9],[114,4,114,9],[117,3,117,9],[96,4,96,9],[100,3,100,9],[101,4,101,9],[103,4,103,9],[109,3,109,9],[136,4,136,9],[143,3,143,9],[144,4,144,9],[147,3,147,9],[126,4,126,9],[130,3,130,9],[131,4,131,9],[135,3,135,9],[118,4,118,9],[121,3,121,9],[122,4,122,9],[125,3,125,9],[165,4,165,9],[169,3,169,9],[170,4,170,9],[178,3,178,9],[156,4,156,9],[159,3,159,9],[160,4,160,9],[164,3,164,9],[148,4,148,9],[151,3,151,9],[152,4,152,9],[155,3,155,9],[195,4,195,9],[199,3,199,9],[200,4,200,9],[204,3,204,9],[187,4,187,9],[190,3,190,9],[191,4,191,9],[194,3,194,9],[179,4,179,9],[182,3,182,9],[183,4,183,9],[186,3,186,9],[238,4,238,9],[241,3,241,9],[242,4,242,9],[244,4,244,9],[247,3,247,9],[237,3,237,9],[205,4,205,9],[227,3,227,9],[228,4,228,9],[232,3,232,9],[233,4,233,9],[262,4,262,9],[265,3,265,9],[266,4,266,9],[269,3,269,9],[248,4,248,9],[250,4,250,9],[253,3,253,9],[254,4,254,9],[256,4,256,9],[261,3,261,9],[298,3,301,9],[288,4,288,9],[297,3,297,9],[278,4,278,9],[282,3,282,9],[283,4,283,9],[287,3,287,9],[270,4,270,9],[273,3,273,9],[274,4,274,9],[277,3,277,9]]}
[null,null,null,null,"ATTACHMENT D"]
[null,"Budget Narrative"]
[]
[]
[null,null,null,"A. Project Personnel Labor "]
[]
[null,null,1,"[insert name]"]
[null,null,null,"Role in Project","[enter here]"]
[]
[]
[null,null,2,"[insert name]"]
[null,null,null,"Role in Project","[enter here]"]
[]
[]
[null,null,3,"[insert name]"]
[null,null,null,"Role in Project","[enter here]"]
[]
[null,null,null,null,null,null,null,null,null,null,null,"Please, unhide rows between 22-35 if more space for Labor is needed."]
[null,null,4,"[insert name]"]
[null,null,null,"Role in Project","[enter here]"]
[]
[]
[null,null,5,"[insert name]"]
[null,null,null,"Role in Project","[enter here]"]
[]
[]
[null,null,6,"[insert name]"]
[null,null,null,"Role in Project","[enter here]"]
[]
[]
[null,null,7,"[insert name]"]
[null,null,null,"Role in Project","[enter here]"]
[]
[]
[]
[]
[]
[]
[null,null,null,"B. Equipment, Supplies, Services & Other direct costs"]
[null,null,null,"Equipment"]
[null,null,1,"[insert name of the item]"]
[null,null,null,"Purpose ","[enter here]"]
[]
[]
[null,null,2,"[insert name of the item]"]
[null,null,null,"Purpose ","[enter here]"]
[]
[]
[null,null,3,"[insert name of the item]"]
[null,null,null,"Purpose ","[enter here]"]
[]
[null,null,null,null,null,null,null,null,null,null,null,"Please, unhide rows between 56-70 if more space for Equipment is needed."]
[null,null,4,"[insert name of the item]"]
[null,null,null,"Purpose ","[enter here]"]
[]
[]
[null,null,5,"[insert name of the item]"]
[null,null,null,"Purpose ","[enter here]"]
[]
[]
[]
[null,null,6,"[insert name of the item]"]
[null,null,null,"Purpose ","[enter here]"]
[]
[]
[]
[null,null,7,"[insert name of the item]"]
[null,null,null,"Purpose ","[enter here]"]
[]
[]
[]
[]
[]
[null,null,null,"Supplies"]
[null,null,1,"[insert name of the item]"]
[null,null,null,"Purpose ","[enter here]"]
[]
[]
[null,null,2,"[insert name of the item]"]
[null,null,null,"Purpose ","[enter here]"]
[]
[]
[null,null,3,"[insert name of the item]"]
[null,null,null,"Purpose ","[enter here]"]
[]
[null,null,null,null,null,null,null,null,null,null,null,"Please, unhide rows between 90-105 if more space for Supplies is needed."]
[null,null,4,"[insert name of the item]"]
[null,null,null,"Purpose ","[enter here]"]
[]
[]
[null,null,5,"[insert name of the item]"]
[null,null,null,"Purpose ","[enter here]"]
[]
[]
[]
[null,null,6,"[insert name of the item]"]
[null,null,null,"Purpose ","[enter here]"]
[]
[]
[]
[null,null,7,"[insert name of the item]"]
[null,null,null,"Purpose ","[enter here]"]
[]
[null,null,null,"Price References","[enter here]"]
[]
[]
[]
[]
[null,null,null,"Services"]
[null,null,1,"[insert name of the item]"]
[null,null,null,"Purpose ","[enter here]"]
[]
[]
[null,null,2,"[insert name of the item]"]
[null,null,null,"Purpose ","[enter here]"]
[]
[]
[null,null,3,"[insert name of the item]"]
[null,null,null,"Purpose ","[enter here]"]
[]
[null,null,null,null,null,null,null,null,null,null,null,"Please, unhide rows between 125-139 if more space for Services is needed."]
[null,null,4,"[insert name of the item]"]
[null,null,null,"Purpose ","[enter here]"]
[]
[]
[null,null,5,"[insert name of the item]"]
[null,null,null,"Purpose ","[enter here]"]
[]
[]
[]
[null,null,6,"[insert name of the item]"]
[null,null,null,"Purpose ","[enter here]"]
[]
[]
[]
[null,null,7,"[insert name of the item]"]
[null,null,null,"Purpose ","[enter here]"]
[]
[]
[]
[]
[]
[null,null,null,"Other direct costs"]
[null,null,1,"[insert name of the item]"]
[null,null,null,"Purpose ","[enter here]"]
[]
[]
[null,null,2,"[insert name of the item]"]
[null,null,null,"Purpose ","[enter here]"]
[]
[]
[null,null,3,"[insert name of the item]"]
[null,null,null,"Purpose ","[enter here]"]
[]
[]
[null,null,4,"[insert name of the item]"]
[null,null,null,"Purpose ","[enter here]"]
[]
[]
[null,null,5,"[insert name of the item]"]
[null,null,null,"Purpose ","[enter here]"]
[]
[]
[]
[null,null,6,"[insert name of the item]"]
[null,null,null,"Purpose ","[enter here]"]
[]
[]
[]
[null,null,7,"[insert name of the item]"]
[null,null,null,"Purpose ","[enter here]"]
[]
[null,null,null,null,null,null,null,null,null,null,null,"Please, unhide rows between 159-173 if more space for Other Direct Costs is needed."]
[]
[]
[]
[null,null,null,"C. Travel"]
[]
[null,null,1,"[Origin City, Country - Destination City, Country]"]
[null,null,null,"Purpose ","[enter here]"]
[]
[]
[null,null,2,"[Origin City, Country - Destination City, Country]"]
[null,null,null,"Purpose ","[enter here]"]
[]
[]
[null,null,3,"[Origin City, Country - Destination City, Country]"]
[null,null,null,"Purpose ","[enter here]"]
[]
[]
[null,null,4,"[Origin City, Country - Destination City, Country]"]
[null,null,null,"Purpose ","[enter here]"]
[]
[]
[null,null,5,"[Origin City, Country - Destination City, Country]"]
[null,null,null,"Purpose ","[enter here]"]
[]
[]
[]
[null,null,6,"[Origin City, Country - Destination City, Country]"]
[null,null,null,"Purpose ","[enter here]"]
[]
[]
[]
[null,null,7,"[Origin City, Country - Destination City, Country]"]
[null,null,null,"Purpose ","[enter here]"]
[]
[null,null,null,null,null,null,null,null,null,null,null,"Please, unhide rows between 190-208 if more space for Travel is needed."]
[]
[]
[null,null,null,"Per Diem Lodging rates"]
[null,null,1,"[insert name of destination city]"]
[null,null,null,"Lodging option ","[enter here]"]
[]
[]
[null,null,2,"[insert name of destination city]"]
[null,null,null,"Lodging option ","[enter here]"]
[]
[]
[null,null,3,"[insert name of destination city]"]
[null,null,null,"Lodging option ","[enter here]"]
[]
[]
[null,null,4,"[insert name of destination city]"]
[null,null,null,"Lodging option ","[enter here]"]
[]
[]
[null,null,5,"[insert name of destination city]"]
[null,null,null,"Lodging option ","[enter here]"]
[]
[]
[]
[null,null,6,"[insert name of destination city]"]
[null,null,null,"Lodging option ","[enter here]"]
[]
[]
[]
[null,null,7,"[insert name of the item]"]
[null,null,null,"Purpose ","[enter here]"]
[]
[]
[null,null,5,"[insert name of the item]"]
[null,null,null,"Purpose ","[enter here]"]
[]
[null,null,null,"Price References","[enter here]"]
[]
[]
[null,null,6,"[insert name of the item]"]
[null,null,null,"Purpose ","[enter here]"]
[]
[null,null,null,"Price References","[enter here]"]
[]
[]
[null,null,7,"[insert name of the item]"]
[null,null,null,"Purpose ","[enter here]"]
[]
[null,null,null,"Price References","[enter here]"]
[null,null,null,null,null,null,null,null,null,null,null,"Please, unhide rows between 223-258 if more space for Miscellaneous is needed."]
[]
[]
[null,null,null,"Registrations"]
[null,null,1,"[insert name of the item]"]
[null,null,null,"Purpose ","[enter here]"]
[]
[]
[null,null,2,"[insert name of the item]"]
[null,null,null,"Purpose ","[enter here]"]
[]
[]
[null,null,3,"[insert name of the item]"]
[null,null,null,"Purpose ","[enter here]"]
[]
[]
[null,null,4,"[insert name of the item]"]
[null,null,null,"Purpose ","[enter here]"]
[]
[]
[null,null,5,"[insert name of the item]"]
[null,null,null,"Purpose ","[enter here]"]
[]
[]
[]
[null,null,6,"[insert name of the item]"]
[null,null,null,"Purpose ","[enter here]"]
[]
[]
[]
[null,null,7,"[insert name of the item]"]
[null,null,null,"Purpose ","[enter here]"]
[]
[null,null,null,null,null,null,null,null,null,null,null,"Please, unhide rows between 273-291 if more space for Registrations is needed."]
[]
[]
[]
[]
[null,null,null,"Indirect rate"]
[]
[null,null,null,"Please indicate document that specifies applicable indirect rate"]
[null,null,null," [enter here]"]

{"sheet":"E. Payments Schedule","index":7,"n_rows":37,"n_cols":28,"rows_kept":37,"cut":false,"hidden":true,"merged":[[27,1,27,3],[29,1,29,2],[29,4,29,5],[29,6,29,7],[1,1,1,28],[3,1,3,3],[21,1,21,3],[29,8,29,9],[28,8,28,9],[30,6,30,7],[30,4,30,5],[28,4,28,5],[27,6,28,7],[0,4,0,10]]}
[null,null,null,null,"ATTACHMENT E"]
[null,"Payments & Reporting Schedule"]
[]
[null,"Expenditures Forecast"]
[null,"Costs","Advance","Month1","Month2","Month3","Month4","Month5","Month6","Month7","Month8","Month9","Month10","Month11","Month12","Month13","Month14","Month15","Month16","Month17","Month18","Month19","Month20","Month21","Month22","Month23","Month24","TOTAL"]
[null,"Labor",0,0,0,0,0,0,0,0,0,0,0,0,0,0,0,0,0,0,0,0,0,0,0,0,0,{"$f":"SUM(D6:AA6)","v":0}]
[null,"Equipment",0,0,0,0,0,0,0,0,0,0,0,0,0,0,0,0,0,0,0,0,0,0,0,0,0,{"$f":"SUM(D7:AA7)","v":0}]
[null,"Supplies",0,0,0,0,0,0,0,0,0,0,0,0,0,0,0,0,0,0,0,0,0,0,0,0,0,{"$f":"SUM(D8:AA8)","v":0}]
[null,"Services & Other direct costs",0,0,0,0,0,0,0,0,0,0,0,0,0,0,0,0,0,0,0,0,0,0,0,0,0,0]
[null,"Travel",0,0,0,0,0,0,0,0,0,0,0,0,0,0,0,0,0,0,0,0,0,0,0,0,0,0]
[null,"Indirect costs",0,0,0,0,0,0,0,0,0,0,0,0,0,null,null,null,null,null,null,null,null,null,null,null,null,0]
[null,"Total ",{"$f":"SUM(C6:C11)","v":0},{"$f":"SUM(D6:D11)","v":0},{"$f":"SUM(E6:E11)","v":0},{"$f":"SUM(F6:F11)+D12+E12","v":0},0,0,{"$f":"SUM(I6:I11)+G12+H12","v":0},0,0,{"$f":"SUM(L6:L11)+J12+K12","v":0},0,0,{"$f":"SUM(O6:O11)+M12+N12","v":0},{"$f":"SUM(P6:P10)","v":0},0,0,0,0,0,0,0,0,0,0,0,{"$f":"SUM(AB6:AB11)","v":0}]
[]
[]
[null,null,"Payment","Duration"]
[null,"Advance",0]
[null,"Milestone 1",0,"1-1"]
[null,"Milestone 2",0,"2-4"]
[null,"Milestone 3",0,"5-9"]
[null,"Milestone 4",0,"9-12"]
[]
[null,"Reporting Schedule"]
[null,"Report Type",null,"Month1","Month2","Month3","Month4","Month5","Month6","Month7","Month8","Month9","Month10","Month11","Month12"]
[null,"Technical Progress Report",null,null,null,"2023-11-12"]
[null,"Financial Report / Invocie",null,null,null,"2023-11-12"]
[]
[null,"Project dates: Jan 1- 2024- Dec 31, 2024,"]
[null,"Milestones Budget and Reporting Schedule",null,null,null,null,"Techniccal report"]
[null,"Milestones #",null,"Budget","Finanacial report",null,null,null,"Reporting period"]
[null,"Milestone1",null,150000,"2024-04-15",null,"2024-04-15",null,"Jan 1-March 30, 2024"]
[null,"Milestone2",null,58200,"2024-07-15",null,"2024-07-15",null,"April 1-June 30, 2024"]
[null,"Milestone 3",null,1500]
[null,"Total ",null,{"$f":"SUM(D30:D32)","v":209700}]
[null,null,null,null,null,null,null,null,"15/7"]
[null,null,null,null,null,null,null,"5days GO","20/7"]
[]
[null,null,null,null,null,null,null,"AP","31/7"]

{"sheet":"F. NIH Standard TCs","index":8,"n_rows":115,"n_cols":19,"rows_kept":115,"cut":false,"hidden":true,"merged":[[57,0,57,8],[29,0,29,8],[60,0,60,8],[35,0,35,8],[40,0,40,8],[44,0,44,8],[47,0,47,8],[48,0,48,8],[50,0,50,8],[41,0,41,8],[39,0,39,8],[38,0,38,8],[37,0,37,8],[51,0,51,8],[53,0,53,8],[54,0,54,8],[56,0,56,8],[45,0,45,8],[23,0,23,8],[31,0,31,8],[34,0,34,8],[42,0,42,8],[14,0,14,8],[20,0,20,8],[32,0,32,8],[15,0,15,8],[16,0,16,8],[17,0,17,8],[18,0,18,8],[19,0,19,8],[22,0,22,8],[25,0,25,8],[26,0,26,8],[28,0,28,8],[74,0,74,8],[75,0,75,8],[59,0,59,8],[63,0,63,8],[62,0,62,8],[65,0,65,8],[66,0,66,8],[68,0,68,8],[72,0,72,8],[69,0,69,8],[71,0,71,8],[11,0,11,8],[0,3,0,5],[1,0,1,8],[3,9,3,17],[36,0,36,8],[7,0,7,8],[8,0,8,8],[9,0,9,8],[10,0,10,8],[12,0,12,8],[2,0,2,8],[3,0,3,8],[4,0,4,8],[5,0,5,8],[6,0,6,8],[13,0,13,8]]}
[null,null,null,"ATTACHMENT F"]
["STANDARD TERMS AND CONDITIONS"]
["1. Statutory Requirements: "]
["Grantee agrees to comply with all applicable requirements of 2 CFR 200 (Prime Grants or Cooperative Agreements)  "]
["https://www.ecfr.gov/current/title-2/subtitle-A/chapter-II/part-200?toc=1 "]
[]
["2. Federal Agency Requirements: "]
["Grantee agrees that all activities performed under this Agreement will comply with the Research Terms and Conditions established by the National Science Foundation.   "]
["https://www.nsf.gov/awards/managing/award_conditions.jsp?org=NSF"]
[]
["3. Purpose:"]
["Funds provided under this Agreement shall be used solely for the objectives outlined herein and in accordance with Grantee’s proposal to the National Institutes of Health (NIH), hereby incorporated by reference. "]
[]
["4. Personnel:"]
["The Principal Investigator (PI) is responsible for overseeing the technical work to be performed under this Agreement and for submission of all required Technical Reports. The Principal Investigator may not be replaced without the prior written notice to, and subsequent approval of, CRDF Global. "]
[]
["5. Reporting & Performance:"]
["Grantee shall submit technical and financial reports in accordance with the schedule set forth herein and in such detail and format as requested by CRDF Global.  Grantee is expected to make best efforts to accomplish the technical objectives in accordance with the established milestones and schedule and to report to CRDF Global any circumstances that may result in significant delays. CRDF Global will monitor Grantee technical and financial progress and may request additional information from the Grantee during the course of the project. Grantee agrees to cooperate with all such reasonable requests. "]
[]
["6. Record-Keeping & Access:"]
["Grantee shall maintain detailed financial and other records related to this Agreement, including records associated with any subawards issued by the Grantee hereunder, and shall retain such records for a period of no less than three (3) years from the expiration date of this Agreement.   Grantee agrees to provide timely, unrestricted access to such records throughout the duration of the grant period and for the three-year retention period. Grantee further agrees to provide CRDF Global or its authorized representatives access to Grantee’s facilities and personnel performing work under this Agreement.  Grantee shall ensure similar provisions are incorporated into any subaward issued hereunder. "]
[]
["7. Liability:"]
["Neither Party shall be liable to the other for any claim related to their performance of this agreement, except for claims arising from negligent or intentional tortious conduct. "]
[]
["8. Suspension & Termination:",null,null,null,null,null,null,null,null,null,null,null,null,null,null,null,null,null,{"$f":"C26","v":0}]
["Either Party may terminate this Agreement for convenience at any time by providing thirty (30) days written notice to the other Party.  In the event of such suspension or termination, the Grantee will submit claim for final eligible costs with fifteen (15) days of the date of termination. \nCRDF Global may suspend this Agreement at any time and for any reason by providing fifteen (15) written notice to the Grantee.   "]
[]
["9. Force Majeure:"]
["Neither Party shall be liable for any failure to perform its obligations under this Agreement, if such failure results from any Acts of God, pandemics, Acts of War, riot, civil unrest, flood, earthquake or other similar cause beyond such party’s reasonable control (including any sustained mechanical, electronic or communications failure, but excluding failure caused by a party’s financial condition or negligence). A party experiencing a Force Majeure circumstance shall notify the other Party, in writing, as soon as possible describing the situation and its impact on the performance of this Agreement."]
[]
["10. Disputes:"]
["In the event of any disagreement regarding performance under or interpretation of this Agreement, the Parties shall use their best efforts to reach a negotiated resolution that is equitable and mutually satisfactory. Until final resolution of any dispute, the Grantee shall diligently proceed with the performance of this Agreement as directed by CRDF Global. Nothing contained in this Agreement or in any other document related hereto is intended to or shall have the effect of requiring either party to consider, resort to participate in, or abide by any arbitration process or mechanism, or any device or arrangement of a nature or intent similar to arbitration."]
[]
["11. Compliance:",null,null,null,null,null,null,null,null,null,null,null,null,null,null,null,null,null,{"$f":"C35","v":0}]
["Grantee agrees to observe and conform to, in all material respects, all laws, rules, regulations, codes, orders and requirements of governmental authorities relating to this Agreement, and certifies that it is in compliance with and will comply in the course of the period of performance with other generally applicable requirements, including, but not limited to, those relating to corporate operations, taxation, employment and the environment. \n\nThe Grantee further understands and certifies to the following: "]
["a. Suspension & Debarment: Neither Grantee nor any individual Project Personnel are presently debarred, suspended, proposed for debarment, declared ineligible, or voluntarily excluded from participation in this Agreement by any U.S. Government department or agency or any international organization. "]
["b. Prohibition Against Lobbying: That funds provided under this Agreement or will be paid, by or on behalf of the Grantee, to any person for influencing or attempting to influence an officer or employee of a federal agency, a Member of Congress, and officer or employee of Congress, or an employee of a Member of Congress in connection with the awarding, issuance, extension, modification, or renewal of any Federal contract, grant, loan, or other transaction. "]
["c. Combatting Terrorism: As a material condition of receiving the Agreement, Grantee accepts the obligation to take all reasonable steps to prevent financing or any other form of material support being provided to terrorists, individuals, and entities that provide support or services to, are owned, or controlled by, act for or on behalf of, or are otherwise associated with terrorists. With prejudice to the generality of the foregoing, Grantee agrees to ensure that it does not engage in any transaction with or otherwise provide any financing or other material support to an individual or entity on the Specially Designated National (SDN) list issued by the Office of Foreign Assets Control of the US Treasury Department. "]
["d. Prohibition Against Human Trafficking: During the Agreement Period, Grantee certifies that it will not engage in human trafficking, procure a commercial sex act, or use forced labor in performance of the Agreement. Grantee further agrees to ensure that its employees and subgrantees observe the same requirement, and to disclose any information or allegations of violations that come to its attention; failure to comply with this requirement may result in unilateral termination of the Agreement by CRDF Global without penalty or further payment. "]
["e. Nondiscrimination: As applicable, Grantee will comply with Executive Order 11246, as amended (Equal Employment Opportunity); Section 503 of the Rehabilitation Act of 1973; the Vietnam Era Veterans Readjustment Act of 1974, 38 U.S.C. § 4212; the Jobs for Veterans Act of 2002, and Executive Order 13496, and all implementing regulations, including but not limited to 41 CFR §§ 60-1.4, 60-300.5, 60-741.5. This Agreement is subject to the provisions of Title VI of the Civil Rights Act of 1964 [42 U.S.C. § 2000d], Title IX of the Education Amendments of 1972 [20 USC § 1681 et seq.], the Rehabilitation Act of 1973 [29 U.S.C. § 794], the Age Discrimination Act of 1975 [42 U.S.C. § 6101 et seq], and all regulations and policies issued pursuant to these statutes. Specifically, in accordance with these statutes, regulations, and policies, no person based on race, color, national origin, sex, disability, or age shall be excluded from participation in, be denied the benefits of, or otherwise be subjected to discrimination under this Agreement. "]
["f. Prohibition on Certain Telecommunications and Video Surveillance Services or Equipment: Grantee will abide by the restrictions set forth in 2 CFR § 200.216, also defined in Public Law 115-232, section 889 "]
["g. Bioethics:  For research projects involving human and/or animal subjects or recombinant or synthetic nucleic acid molecules, Grantee agrees to comply with all U.S. and national laws and regulations associated with the conduct of such research. "]
[]
["12. Relationship and Authority:"]
["The Parties are separate organizations operating independently in connection with the Agreement. Neither Party has the authority to create obligations on behalf of the other. Each shall make this fact clear to all third parties with which it deals.    \nGrantee certifies that it possesses the legal authority to enter into this Agreement, and that is has satisfied all requirements of its governing body authorizing the acceptance of this award including all understandings and assurances contained therein directing and authorizing the person identified as the official representative of the Grantee to act in connection with the Agreement. "]
[]
["13. Integrity & Ethics:"]
["At all times during the Agreement Period, Grantee shall adhere to the highest standards of integrity and ethics. Without prejudice to the generality of the foregoing, Grantee shall ensure that it has not provided or offered, and will not provide or offer, any corrupt, prohibited, unethical or even unseemly payment or other benefit directly or indirectly to CRDF Global, any government official(s), or any agent or representative of either of the foregoing. \n\nGrantee further confirms that it has, and will maintain throughout the duration of this Agreement, a conflict-of-interest policy compliant with the provisions of 2 CFR 200. ",null,null,null,null,null,null,null,null,null,null,null,null,null,null,null,null,null,{"$f":"C49","v":0}]
[]
["14. Data Protection:"]
["Grantee acknowledges that it may be required to collect personal data for the purposes set forth in this Agreement. If Grantee collects personal data pursuant to this Agreement, Grantee will not store, copy, analyze, monitor, or otherwise use such personal data except for the purposes set forth in this Agreement and with the individual’s informed, prior consent. Grantee will comply fully with all applicable laws, regulations, and government orders relating to the personal data that Grantee receives, or has access to, under this Agreement. Grantee will otherwise protect personal data and will not use, disclose, or transfer the personal data across national borders, except as necessary to perform under this Agreement or as consented to by the individual in accordance with applicable law. Under no circumstances will Grantee sell, share, or otherwise exchange personal data collected pursuant to this Agreement for commercial purposes."]
[]
["15. Intellectual Property:"]
["For the purposes of this Agreement, the parties agree to the following: \n\n- CRDF Global makes no claim to any IP conceived or developed in the performance of this Agreement; \n\n- Grantee shall take all necessary steps to protect its pre-existing IP that may be used in the performance of this Agreement; \n\n- Grantee shall accept and flow down all federal government requirements; and \n\nAny IP conceived or developed in the performance of this Agreement shall be subject to the requirements of the Bayh-Dole Act, 35 U.S. C. §§ 200 et. seq., and implementing regulations, 37 CFR Part 401. "]
[]
["16. Publications: ",null,null,null,null,null,null,null,null,null,"Do we need Project indicators?"]
["All publications produced in performance of this Agreement must contain the following acknowledgment: “This publication is based on work supported by funding provided by the National Institutes of Health (NIH) and administered by CRDF Global. Any opinions, findings and conclusions or recommendations expressed in this material are those of the author(s) and do not necessarily reflect the views of NIH or CRDF Global.” Copies of publications based on or developed under this Agreement shall be provided to CRDF Global or its authorized representatives upon request.",null,null,null,null,null,null,null,null,null,null,null,null,null,null,null,null,null,{"$f":"C58","v":0}]
[]
["17. Assignment:"]
["Grantee may not assign, subcontract, grant, subgrant or otherwise transfer any rights (including, but not limited to, claims and rights to receive payment) or obligations under the Agreement to any other person or entity without prior, written approval from CRDF Global. "]
[]
["18. Travel:"]
["All travel funded under this Agreement shall be subject to the provision of the Fly America Act (49 U.S.C. 40018) and the provisions of 2 CFR 200."]
[]
["19. Invoicing & Payment:"]
["Grantee will submit invoices and financial reports in accordance with the schedule contained herein and containing such information, or in such format, as provided by CRDF Global. \n\nCRDF Global reserves the right to request additional documentation or information to conduct appropriate review of reported expenditures and to disallow any cost found to be unallowable or not in accordance with the approved Grant budget. \n\nIf Grantee becomes aware of an overpayment, an erroneous payment, or a duplicate payment, Grantee shall immediately notify CRDF Global in writing and request instructions for managing the matter. CRDF Global may deduct from any payment all or part of any amount, whether in connection with the Agreement or any other agreement, owed to it by Grantee.",null,null,null,null,null,null,null,null,null,null,null,null,null,null,null,null,null,{"$f":"C67","v":0}]
[]
["20. Modification & Amendment:"]
["The Agreement may only be modified by a written amendment signed by both Parties except in the following circumstances wherein CRDF Global may issue a unilateral modification or formal written approval: \n\na. Approval of a no-cost extension requested in writing by the Grantee. \nb. Administrative updates of the CRDF Global PO or GO. \nc. Budget reallocations among direct cost budget categories requested by the Grantee that are less than 10% of the total grant amount. "]
[]
["21. Severability:"]
["Any Agreement provision(s) determined by a court or other competent authority to contravene applicable law or mandatory public policy will be rendered void or unenforceable only to the extent of such contravention; remaining provisions shall continue in full force and effect and be construed to implement the Parties’ intent to the maximum extent practicable. "]
[]
["22. Issuance in Multiple Languages:"]
["For explanatory purposes or for the sake of clarification, this Agreement and associated documents may be translated into one or more languages other than English. In the event of the existence of such translations, the English-language version shall serve as the definitive version determining the interpretation of any provision contained herein. ",null,null,null,null,null,null,null,null,null,null,null,null,null,null,null,null,null,{"$f":"C76","v":0}]
[]
[]
[]
[]
[]
[]
[]
[]
[null,null,null,null,null,null,null,null,null,null,null,null,null,null,null,null,null,null,{"$f":"C85","v":0}]
[]
[]
[]
[]
[]
[]
[]
[]
[]
[]
[]
[null,null,null,null,null,null,null,null,null,null,null,null,null,null,null,null,null,null,{"$f":"C97","v":0}]
[]
[]
[]
[]
[]
[]
[]
[]
[null,null,null,null,null,null,null,null,null,null,null,null,null,null,null,null,null,null,{"$f":"C106","v":0}]
[]
[]
[]
[]
[]
[]
[]
[]
[null,null,null,null,null,null,null,null,null,null,null,null,null,null,null,null,null,null,{"$f":"C115","v":0}]

{"sheet":"Grant Agreement","index":9,"n_rows":71,"n_cols":7,"rows_kept":71,"cut":false,"hidden":true,"merged":[[69,3,69,4],[69,5,69,7],[70,1,70,2],[70,3,70,4],[70,5,70,7],[60,1,60,7],[64,1,64,2],[63,3,63,4],[63,5,63,7],[64,3,64,4],[64,5,64,7],[5,1,5,2],[5,3,5,7],[7,1,7,2],[7,3,7,7],[53,1,53,7],[19,3,19,7],[20,1,20,2],[21,1,21,2],[10,1,10,2],[11,1,11,2],[12,1,12,2],[13,1,13,2],[14,1,14,2],[15,1,15,2],[15,3,15,7],[16,1,16,2],[17,1,17,2],[18,1,18,2],[19,1,19,2],[10,3,10,7],[11,3,11,7],[12,3,12,7],[13,3,13,7],[14,3,14,7],[16,3,16,7],[17,3,17,7],[18,3,18,7],[20,3,20,7],[21,3,21,7],[22,1,22,2],[22,3,22,7],[23,1,23,2],[23,3,23,7],[24,3,24,7],[25,1,25,2],[25,3,25,7],[26,1,26,2],[26,3,26,7],[9,1,9,2],[40,1,40,2],[41,1,41,2],[41,3,41,7],[31,1,31,2],[31,3,31,7],[32,1,32,2],[32,3,32,7],[33,1,33,2],[33,3,33,7],[28,1,28,2],[29,1,29,2],[29,3,29,7],[30,1,30,2],[30,3,30,7],[24,1,24,2],[43,1,44,2],[42,1,42,2],[42,3,42,7],[34,1,34,2],[34,3,34,7],[43,4,43,7],[44,4,44,7],[52,1,52,2],[51,3,51,7],[49,1,49,2],[45,1,47,2],[48,3,48,7],[50,1,50,2],[49,3,49,7],[51,1,51,2],[50,3,50,7],[48,1,48,2]]}
[null,null,null,null,null,"GRANT AGREEMENT"]
[]
[]
[]
[]
[null,"GRANT NUMBER"]
[]
[null,"Project Title",null,{"$f":"'A. SOW'!S4","v":"[enter here]"}]
[]
[null,"GRANTEE INFORMATION"]
[null,"Grantee Organization",null,{"$f":"IDF!R8","v":0}]
[null,"Address Line 1",null,{"$f":"IDF!R11","v":0}]
[null,"Address Line 2",null,{"$f":"IDF!R12","v":0}]
[null,"City",null,{"$f":"IDF!R13","v":0}]
[null,"Grantee Country",null,{"$f":"IDF!R16","v":0}]
[null,"Unique Entity Identifier ",null,{"$f":"IDF!R34","v":0}]
[null,"Local registration number",null,{"$f":"IDF!R35","v":0}]
[null,"Grantee Phone",null,{"$f":"IDF!R19","v":0}]
[null,"Grantee E-mail",null,{"$f":"IDF!R22","v":0}]
[null,"Principal Investigator (PI) Name",null,{"$f":"IDF!R38","v":0}]
[null,"Principal Investigator Position",null,{"$f":"IDF!R39","v":0}]
[null,"Principal Investigator E-mail",null,{"$f":"IDF!R41","v":0}]
[null,"Principal Investigator \nPhone Number",null,{"$f":"IDF!R40","v":0}]
[null,"Authorized Signatory Name",null,{"$f":"IDF!R44","v":0}]
[null,"Authorized Signatory Position",null,{"$f":"IDF!R45","v":0}]
[null,"Authorized Signatory Email",null,{"$f":"IDF!R46","v":0}]
[null,"Authorized Signatory Phone Number",null,{"$f":"IDF!R47","v":0}]
[]
[null,"CRDF GLOBAL INFORMATION"]
[null,"Address",null,"1776 Wilson Boulevard, Third Floor, Arlington, VA 22209"]
[null,"Unique Entity Identifier ",null,"MR7ZQXJSQKA5"]
[null,"Grant Officer Name"]
[null,"Grant Officer Title"]
[null,"Grant Officer Phone"]
[null,"Grant Officer E-Mail"]
[]
[]
[]
[]
[]
[null,"GRANT INFORMATION"]
[null,"Project Duration",null,{"$f":"'A. SOW'!S6","v":"[enter here]"}]
[null,"Grant Ceiling",null,{"$f":"'C. Budget'!W119","v":0}]
[null,"Agreement Type",null,null,"Cost-reimbursable"]
[null,null,null,null,"Fixed Amount Award"]
[null,"Payment Modality",null,null,"Advance"]
[null,null,null,null,"Arrears"]
[null,null,null,null,"As per payment schedule"]
[null,"Payment Terms",null,"NET 30"]
[null,"Competition"]
[null,"Prime Agreement Number"]
[null,"Authorization"]
[null,"Special Terms and Conditions",null,null,"Yes",null,"No"]
[null,"Funding for this Grant has been provided by the National Institutes of Health via National Science Foundation Cooperative Agreement #"]
[null,"ATTACHMENTS:"]
[null,"A","Scope of Work","E","Payment and Reporting Schedule"]
[null,"B","Workplan","F","Standard Terms & Conditionds"]
[null,"C","Budget","G","Specify"]
[null,"D","Budget Narrative","H","Specify"]
[null,"EXECUTION"]
[null,"This Agreement is entered into by CRDF Global and [organization_name] (hereafter “Grantee”) for the purposes set forth in Attachment A: Scope of Work (SOW). This Grant Agreement (with all attachments, hereafter the \"Agreement\"), constitutes the complete understanding between CRDF Global and the Grantee and supplants all representations of the Parties, whether oral or written, made prior to the execution of this Agreement. No subsequent modification, extension, or amendment to any part of this Agreement will be valid unless in writing and signed both by CRDF Global and the Grantee. By signature of their authorized representatives below, CRDF Global and Grantee (hereafter the “Parties”) make and enter into this Agreement as of the date of CRDF Global execution."]
[null,"For",{"$f":"IDF!R8","v":0}]
[]
[null,null,null,{"$f":"IDF!R44","v":0},null,{"$f":"IDF!R45","v":0}]
[null,"Sigature",null,"Name",null,"Title"]
[]
[]
[null,"For","CRDF Global"]
[]
[null,null,null,"Defrim Dedey",null,"Director of Grants"]
[null,"Sigature",null,"Name",null,"Title"]

{"sheet":"Tecnical","index":10,"n_rows":280,"n_cols":3,"rows_kept":280,"cut":false,"hidden":true,"merged":[]}
["Institutional Data Form",null,"Payment Terms"]
["Kerry McGowan",null,"NET 30"]
["Kevin Gates",null,"NET 15"]
["Fouzilla Sebbak",null,"NET 10"]
["Nadine Zabaneh"]
["Salman Al-Darbisi"]
["Sarah Haddad"]
["Huda AL-SHARIF"]
["Lyubov Taranenko"]
["Vitaliy Vysochin"]
["Yana Slyshchenko"]
["Dinmukhamed Zharylkassyn"]
["Svitlana Kutniuk"]
[]
[]
["Alabama"]
["Alaska"]
["Arizona"]
["Arkansas"]
["California"]
["Colorado"]
["Connecticut"]
["Delaware"]
["Florida"]
["Georgia"]
["Hawaii"]
["Idaho"]
["Illinois"]
["Indiana"]
["Iowa"]
["Kansas"]
["Kentucky"]
["Louisiana"]
["Maine"]
["Maryland"]
["Massachusetts"]
["Michigan"]
["Minnesota"]
["Mississippi"]
["Missouri"]
["Montana"]
["Nebraska"]
["Nevada"]
["New Hampshire"]
["New Jersey"]
["New Mexico"]
["New York"]
["North Carolina"]
["North Dakota"]
["Ohio"]
["Oklahoma"]
["Oregon"]
["Pennsylvania"]
["Rhode Island"]
["South Carolina"]
["South Dakota"]
["Tennessee"]
["Texas"]
["Utah"]
["Vermont"]
["Virginia"]
["Washington"]
["West Virginia"]
["Wisconsin"]
["Wyoming"]
[]
[]
[]
["Afghanistan"]
["Albania"]
["Algeria"]
["Andorra"]
["Angola"]
["Antigua and Barbuda"]
["Argentina"]
["Armenia"]
["Australia"]
["Austria"]
["Azerbaijan"]
["Bahamas"]
["Bahrain"]
["Bangladesh"]
["Barbados"]
["Belarus"]
["Belgium"]
["Belize"]
["Benin"]
["Bhutan"]
["Bolivia"]
["Bosnia and Herzegovina"]
["Botswana"]
["Brazil"]
["Brunei"]
["Bulgaria"]
["Burkina Faso"]
["Burundi"]
["Cabo Verde"]
["Cambodia"]
["Cameroon"]
["Canada"]
["Central African Republic"]
["Chad"]
["Chile"]
["China"]
["Colombia"]
["Comoros"]
["Congo, Democratic Republic of the"]
["Congo, Republic of the"]
["Costa Rica"]
["Cote d'Ivoire"]
["Croatia"]
["Cuba"]
["Cyprus"]
["Czechia"]
["Denmark"]
["Djibouti"]
["Dominica"]
["Dominican Republic"]
["Ecuador"]
["Egypt"]
["El Salvador"]
["Equatorial Guinea"]
["Eritrea"]
["Estonia"]
["Eswatini"]
["Ethiopia"]
["Fiji"]
["Finland"]
["France"]
["Gabon"]
["Gambia"]
["Georgia"]
["Germany"]
["Ghana"]
["Greece"]
["Grenada"]
["Guatemala"]
["Guinea"]
["Guinea-Bissau"]
["Guyana"]
["Haiti"]
["Honduras"]
["Hungary"]
["Iceland"]
["India"]
["Indonesia"]
["Iran"]
["Iraq"]
["Ireland"]
["Israel"]
["Italy"]
["Jamaica"]
["Japan"]
["Jordan"]
["Kazakhstan"]
["Kenya"]
["Kiribati"]
["Kosovo"]
["Kuwait"]
["Kyrgyzstan"]
["Laos"]
["Latvia"]
["Lebanon"]
["Lesotho"]
["Liberia"]
["Libya"]
["Liechtenstein"]
["Lithuania"]
["Luxembourg"]
["Madagascar"]
["Malawi"]
["Malaysia"]
["Maldives"]
["Mali"]
["Malta"]
["Marshall Islands"]
["Mauritania"]
["Mauritius"]
["Mexico"]
["Micronesia"]
["Moldova"]
["Monaco"]
["Mongolia"]
["Montenegro"]
["Morocco"]
["Mozambique"]
["Myanmar"]
["Namibia"]
["Nauru"]
["Nepal"]
["Netherlands"]
["New Zealand"]
["Nicaragua"]
["Niger"]
["Nigeria"]
["North Korea"]
["North Macedonia"]
["Norway"]
["Oman"]
["Pakistan"]
["Palau"]
["Palestine"]
["Panama"]
["Papua New Guinea"]
["Paraguay"]
["Peru"]
["Philippines"]
["Poland"]
["Portugal"]
["Qatar"]
["Romania"]
["Russia"]
["Rwanda"]
["Saint Kitts and Nevis"]
["Saint Lucia"]
["Saint Vincent and the Grenadines"]
["Samoa"]
["San Marino"]
["Sao Tome and Principe"]
["Saudi Arabia"]
["Senegal"]
["Serbia"]
["Seychelles"]
["Sierra Leone"]
["Singapore"]
["Slovakia"]
["Slovenia"]
["Solomon Islands"]
["Somalia"]
["South Africa"]
["South Korea"]
["South Sudan"]
["Spain"]
["Sri Lanka"]
["Sudan"]
["Suriname"]
["Sweden"]
["Switzerland"]
["Syria"]
["Taiwan"]
["Tajikistan"]
["Tanzania"]
["Thailand"]
["Timor-Leste"]
["Togo"]
["Tonga"]
["Trinidad and Tobago"]
["Tunisia"]
["Turkey"]
["Turkmenistan"]
["Tuvalu"]
["Uganda"]
["Ukraine"]
["United Arab Emirates (UAE)"]
["United Kingdom (UK)"]
["United States of America (USA)"]
["Uruguay"]
["Uzbekistan"]
["Vanuatu"]
["Vatican City (Holy See)"]
["Venezuela"]
["Vietnam"]
["Yemen"]
["Zambia"]
["Zimbabwe"]
[]
["Select an option"]
["Provided"]
["Not provided"]
[]
["Select an option"]
["University"]
["Corporation / Company"]
["Government "]
["International Organization"]
["Other"]
[]
["Select an option"]
["Yes"]
["No"]